[Event "GrandPrix_29.05"]
[Site "Chess.com"]
[Date "2020.05.29"]
[Round "8"]
[White "Aliakbarov_Anar"]
[Black "Forking_U"]
[Result "1-0"]
[WhiteElo "2174"]
[BlackElo "2169"]
[TimeControl "600+2"]
[EndTime "12:58:32 PDT"]
[Termination "Aliakbarov_Anar won by resignation"]

1. d4 {[%clk 0:10:01.9]} 1... d5 {[%clk 0:09:59.7]} 2. c4 {[%clk 0:10:02.8]}
2... c6 {[%clk 0:10:00.9]} 3. Nc3 {[%clk 0:10:02.1]} 3... Nf6 {[%clk 0:10:02.3]}
4. e3 {[%clk 0:10:03.2]} 4... e6 {[%clk 0:10:00.6]} 5. Nf3 {[%clk 0:10:04]} 5...
Nbd7 {[%clk 0:10:01.8]} 6. Qc2 {[%clk 0:10:04.3]} 6... Bd6 {[%clk 0:09:51.5]} 7.
g4 {[%clk 0:10:03.4]} 7... h6 {[%clk 0:09:51.6]} 8. Rg1 {[%clk 0:09:57.7]} 8...
e5 {[%clk 0:09:45.4]} 9. cxd5 {[%clk 0:09:54.4]} 9... cxd5 {[%clk 0:09:47.3]}
10. dxe5 {[%clk 0:09:12.9]} 10... Nxe5 {[%clk 0:09:46.3]} 11. Nxe5 {[%clk
0:09:13.3]} 11... Bxe5 {[%clk 0:09:46.7]} 12. Bb5+ {[%clk 0:09:14.4]} 12... Bd7
{[%clk 0:09:38.6]} 13. Bxd7+ {[%clk 0:09:14]} 13... Qxd7 {[%clk 0:09:40.5]} 14.
h3 {[%clk 0:09:11.9]} 14... Rc8 {[%clk 0:09:07]} 15. Bd2 {[%clk 0:09:04.6]}
15... O-O {[%clk 0:06:48.3]} 16. O-O-O {[%clk 0:08:57.4]} 16... Ne4 {[%clk
0:06:44.3]} 17. Be1 {[%clk 0:08:25]} 17... Nxc3 {[%clk 0:06:35.2]} 18. Bxc3
{[%clk 0:08:24.3]} 18... b5 {[%clk 0:05:42.2]} 19. Qb3 {[%clk 0:08:11.6]} 19...
Bxc3 {[%clk 0:05:20.5]} 20. bxc3 {[%clk 0:08:13.5]} 20... Rc4 {[%clk 0:05:13.6]}
21. Kb2 {[%clk 0:08:08.6]} 21... a5 {[%clk 0:05:02]} 22. Rd4 {[%clk 0:07:59.1]}
22... Rfc8 {[%clk 0:04:45.7]} 23. Rgd1 {[%clk 0:07:50.5]} 23... Qc7 {[%clk
0:03:55.5]} 24. Rxc4 {[%clk 0:06:49.8]} 24... dxc4 {[%clk 0:03:54.1]} 25. Qc2
{[%clk 0:06:46.6]} 25... b4 {[%clk 0:03:49.8]} 26. Qf5 {[%clk 0:06:36.3]} 26...
bxc3+ {[%clk 0:03:28.7]} 27. Kxc3 {[%clk 0:06:33.2]} 27... Qb7 {[%clk
0:03:16.8]} 28. Qxa5 {[%clk 0:05:50.7]} 28... Qe7 {[%clk 0:02:49.5]} 29. Rd4
{[%clk 0:05:35.6]} 29... Qf6 {[%clk 0:02:44.9]} 30. f4 {[%clk 0:05:27.3]} 30...
Re8 {[%clk 0:02:38]} 31. Kd2 {[%clk 0:05:18.7]} 31... Qc6 {[%clk 0:02:36.6]} 32.
Qd5 {[%clk 0:05:14.9]} 32... c3+ {[%clk 0:01:50.2]} 33. Kc2 {[%clk 0:05:15.5]}
33... Qa6 {[%clk 0:01:20.5]} 34. Qc4 {[%clk 0:05:06]} 34... Qb7 {[%clk
0:01:04.9]} 35. Qxc3 {[%clk 0:05:02]} 35... Rc8 {[%clk 0:00:55.8]} 36. Rc4
{[%clk 0:05:02.9]} 36... Qe4+ {[%clk 0:00:56.6]} 37. Rxe4 {[%clk 0:05:03.2]} 1-0

[Event "GrandPrix_29.05"]
[Site "Chess.com"]
[Date "2020.05.29"]
[Round "8"]
[White "TheFireChess"]
[Black "Semen_Khanin"]
[Result "1-0"]
[WhiteElo "2245"]
[BlackElo "2307"]
[TimeControl "600+2"]
[EndTime "12:58:37 PDT"]
[Termination "TheFireChess won by resignation"]

1. e4 {[%clk 0:10:01.9]} 1... e5 {[%clk 0:09:57.9]} 2. Nf3 {[%clk 0:10:01.1]}
2... Nc6 {[%clk 0:09:59.5]} 3. Bc4 {[%clk 0:10:02.2]} 3... Bc5 {[%clk
0:09:59.7]} 4. c3 {[%clk 0:10:03.3]} 4... Nf6 {[%clk 0:10:00.9]} 5. d3 {[%clk
0:10:04.5]} 5... d6 {[%clk 0:10:01.7]} 6. Nbd2 {[%clk 0:10:05.9]} 6... a6 {[%clk
0:10:02.1]} 7. b4 {[%clk 0:10:06.4]} 7... Ba7 {[%clk 0:10:01.9]} 8. Bb3 {[%clk
0:10:07.9]} 8... h6 {[%clk 0:10:01.9]} 9. h3 {[%clk 0:10:09]} 9... Ne7 {[%clk
0:10:02.8]} 10. Nf1 {[%clk 0:10:07.6]} 10... Ng6 {[%clk 0:10:03.9]} 11. Ng3
{[%clk 0:10:08.8]} 11... Be6 {[%clk 0:10:00.5]} 12. Be3 {[%clk 0:10:04.3]} 12...
Bxe3 {[%clk 0:09:57.1]} 13. fxe3 {[%clk 0:10:06.2]} 13... d5 {[%clk 0:09:52.3]}
14. O-O {[%clk 0:08:58.2]} 14... dxe4 {[%clk 0:09:49.8]} 15. dxe4 {[%clk
0:08:44.1]} 15... Qxd1 {[%clk 0:09:45.1]} 16. Rfxd1 {[%clk 0:08:46]} 16... Nd7
{[%clk 0:09:08.7]} 17. Nf5 {[%clk 0:07:52.1]} 17... Bxf5 {[%clk 0:09:00]} 18.
exf5 {[%clk 0:07:54]} 18... Ne7 {[%clk 0:09:01.3]} 19. Bxf7+ {[%clk 0:07:45]}
19... Kxf7 {[%clk 0:09:01.5]} 20. Rxd7 {[%clk 0:07:45.8]} 20... Kf6 {[%clk
0:08:42.5]} 21. Rad1 {[%clk 0:07:22.1]} 21... Nxf5 {[%clk 0:08:33.9]} 22. Rxc7
{[%clk 0:07:04.5]} 22... Rhd8 {[%clk 0:08:19.8]} 23. Rxd8 {[%clk 0:06:58.9]}
23... Rxd8 {[%clk 0:08:21.7]} 24. Kf2 {[%clk 0:06:48.3]} 24... Nd6 {[%clk
0:08:19.3]} 25. Ke2 {[%clk 0:06:39.3]} 25... Nb5 {[%clk 0:08:10.7]} 26. Rc5
{[%clk 0:06:18.5]} 26... Rd5 {[%clk 0:08:07.7]} 27. Rc8 {[%clk 0:06:02.8]} 27...
Nd6 {[%clk 0:08:07.3]} 28. Rf8+ {[%clk 0:05:40.9]} 28... Ke7 {[%clk 0:08:04.2]}
29. Rg8 {[%clk 0:05:42]} 29... Kf7 {[%clk 0:08:01.8]} 30. Rb8 {[%clk 0:05:42.5]}
30... b5 {[%clk 0:07:58.8]} 31. Nd2 {[%clk 0:05:33.6]} 31... e4 {[%clk
0:07:51.5]} 32. Ra8 {[%clk 0:05:24.3]} 32... Rd3 {[%clk 0:07:39.5]} 33. Nxe4
{[%clk 0:05:17.3]} 33... Rd5 {[%clk 0:07:30.2]} 34. Ra7+ {[%clk 0:05:16.6]}
34... Kf8 {[%clk 0:07:25.6]} 35. Nxd6 {[%clk 0:05:02.8]} 35... Rxd6 {[%clk
0:07:26.8]} 36. Rc7 {[%clk 0:05:01.8]} 36... h5 {[%clk 0:07:20.5]} 37. c4 {[%clk
0:04:44.4]} 37... bxc4 {[%clk 0:07:19.2]} 38. Rxc4 {[%clk 0:04:46.3]} 38... Ke7
{[%clk 0:07:16.6]} 39. a4 {[%clk 0:04:46.2]} 39... Rg6 {[%clk 0:07:11.4]} 40. g4
{[%clk 0:04:47.1]} 40... Rg5 {[%clk 0:07:07.1]} 41. Kf3 {[%clk 0:04:45.7]} 41...
Rd5 {[%clk 0:06:53.3]} 42. Rc7+ {[%clk 0:04:21.3]} 42... Kf8 {[%clk 0:06:35.8]}
43. Ke4 {[%clk 0:03:50.1]} 43... Rd1 {[%clk 0:06:33.8]} 44. gxh5 {[%clk
0:03:50.7]} 44... Rb1 {[%clk 0:06:32.9]} 45. Rb7 {[%clk 0:03:50]} 45... Rh1
{[%clk 0:06:27.5]} 46. b5 {[%clk 0:03:35.9]} 46... axb5 {[%clk 0:06:27.3]} 47.
Rxb5 {[%clk 0:03:37.8]} 47... Rxh3 {[%clk 0:06:26.8]} 48. a5 {[%clk 0:03:36.1]}
48... Ke7 {[%clk 0:06:22.6]} 49. Rg5 {[%clk 0:03:22.2]} 49... Kf6 {[%clk
0:06:18]} 50. Rb5 {[%clk 0:03:07.2]} 50... Rh4+ {[%clk 0:06:15.4]} 51. Kd3
{[%clk 0:03:07.8]} 51... Ra4 {[%clk 0:06:16.9]} 52. e4 {[%clk 0:03:06.3]} 52...
Ra1 {[%clk 0:06:17.5]} 53. Rf5+ {[%clk 0:03:03.2]} 53... Ke6 {[%clk 0:06:17.7]}
54. Rg5 {[%clk 0:03:00.7]} 54... Ra3+ {[%clk 0:06:10.8]} 55. Kd4 {[%clk
0:02:59.6]} 55... Ra4+ {[%clk 0:06:11.8]} 56. Ke3 {[%clk 0:03:00.6]} 56... Kf6
{[%clk 0:06:07.2]} 57. Rg6+ {[%clk 0:02:56.3]} 57... Ke5 {[%clk 0:06:01.2]} 58.
Rg5+ {[%clk 0:02:57.5]} 58... Kf6 {[%clk 0:06:01]} 59. Rf5+ {[%clk 0:02:55.2]}
59... Ke6 {[%clk 0:06:02.2]} 60. Rb5 {[%clk 0:02:56.1]} 60... Ra1 {[%clk
0:05:59.8]} 61. Kd4 {[%clk 0:02:55.1]} 61... Ra4+ {[%clk 0:05:48.4]} 62. Kc5
{[%clk 0:02:55.6]} 62... Rxe4 {[%clk 0:05:49.5]} 63. a6 {[%clk 0:02:56.2]} 63...
Kf6 {[%clk 0:05:22.3]} 64. a7 {[%clk 0:02:52.4]} 64... Re5+ {[%clk 0:05:23.3]}
65. Kb6 {[%clk 0:02:52.6]} 65... Re6+ {[%clk 0:05:24.1]} 66. Ka5 {[%clk
0:02:52.1]} 66... Re1 {[%clk 0:05:24.8]} 67. Ka6 {[%clk 0:02:51.4]} 67... Re8
{[%clk 0:05:11.9]} 68. Rb8 {[%clk 0:02:44.8]} 68... Re1 {[%clk 0:05:10]} 69.
a8=Q {[%clk 0:02:42.4]} 69... Ra1+ {[%clk 0:05:10.5]} 70. Kb6 {[%clk 0:02:39.4]}
70... Rxa8 {[%clk 0:05:12.4]} 71. Rxa8 {[%clk 0:02:40.7]} 71... Kg5 {[%clk
0:05:14.3]} 72. Ra5+ {[%clk 0:02:41.5]} 1-0

[Event "GrandPrix_29.05"]
[Site "Chess.com"]
[Date "2020.05.29"]
[Round "8"]
[White "GrishaTheChamp"]
[Black "chessdjw"]
[Result "0-1"]
[WhiteElo "2167"]
[BlackElo "2195"]
[TimeControl "600+2"]
[EndTime "12:58:49 PDT"]
[Termination "chessdjw won by resignation"]

1. d4 {[%clk 0:10:01.9]} 1... Nf6 {[%clk 0:10:00.3]} 2. c4 {[%clk 0:09:55.6]}
2... c5 {[%clk 0:10:01]} 3. d5 {[%clk 0:09:55.9]} 3... b5 {[%clk 0:10:01]} 4. a4
{[%clk 0:09:57.3]} 4... b4 {[%clk 0:10:00.6]} 5. Nd2 {[%clk 0:09:56.3]} 5... d6
{[%clk 0:09:59.9]} 6. e4 {[%clk 0:09:57.8]} 6... g6 {[%clk 0:10:01.1]} 7. Bd3
{[%clk 0:09:59.2]} 7... Bg7 {[%clk 0:10:01.8]} 8. f4 {[%clk 0:10:00.7]} 8... e5
{[%clk 0:09:16.4]} 9. fxe5 {[%clk 0:09:48.4]} 9... Ng4 {[%clk 0:09:15.3]} 10. e6
{[%clk 0:09:09.7]} 10... Ne5 {[%clk 0:09:08.8]} 11. exf7+ {[%clk 0:09:04.3]}
11... Kxf7 {[%clk 0:09:08.2]} 12. Ndf3 {[%clk 0:09:05.1]} 12... Nxd3+ {[%clk
0:08:39.7]} 13. Qxd3 {[%clk 0:09:05.7]} 13... Re8 {[%clk 0:08:41.3]} 14. Ne2
{[%clk 0:09:05.2]} 14... Kg8 {[%clk 0:08:36.8]} 15. O-O {[%clk 0:09:05.8]} 15...
Nd7 {[%clk 0:08:26.3]} 16. Bf4 {[%clk 0:08:33.3]} 16... Bxb2 {[%clk 0:07:41.3]}
17. Rab1 {[%clk 0:08:31.5]} 17... Ne5 {[%clk 0:07:30.5]} 18. Qb3 {[%clk
0:06:42.2]} 18... Nxf3+ {[%clk 0:07:26.4]} 19. Qxf3 {[%clk 0:06:44.1]} 19... Be5
{[%clk 0:04:45.1]} 20. Bxe5 {[%clk 0:03:47.2]} 20... Rxe5 {[%clk 0:04:44.2]} 21.
Qf7+ {[%clk 0:03:48.3]} 21... Kh8 {[%clk 0:04:44.4]} 22. Ng3 {[%clk 0:03:23.7]}
22... Ba6 {[%clk 0:04:37.3]} 23. Rf4 {[%clk 0:02:37.8]} 23... Qe7 {[%clk
0:04:33.1]} 24. Qxe7 {[%clk 0:02:21.3]} 24... Rxe7 {[%clk 0:04:33.1]} 25. Rf6
{[%clk 0:02:22.9]} 25... Rd8 {[%clk 0:04:17.6]} 26. Rc1 {[%clk 0:02:20.6]} 26...
b3 {[%clk 0:04:18.5]} 27. Rf3 {[%clk 0:01:50.6]} 27... Rb8 {[%clk 0:04:05.4]}
28. Rfc3 {[%clk 0:01:49.1]} 28... Rb4 {[%clk 0:04:00.3]} 29. Nf1 {[%clk
0:01:29.6]} 29... b2 {[%clk 0:03:23.4]} 30. Rb1 {[%clk 0:01:25]} 30... Bxc4
{[%clk 0:03:24.9]} 31. Nd2 {[%clk 0:01:24.1]} 31... Ba2 {[%clk 0:03:22.2]} 0-1

[Event "GrandPrix_29.05"]
[Site "Chess.com"]
[Date "2020.05.29"]
[Round "8"]
[White "Pash2015"]
[Black "Andrei_Belozerov"]
[Result "0-1"]
[WhiteElo "2256"]
[BlackElo "2588"]
[TimeControl "600+2"]
[EndTime "12:58:51 PDT"]
[Termination "Andrei_Belozerov won by resignation"]

1. e4 {[%clk 0:10:01.9]} 1... c5 {[%clk 0:10:00.2]} 2. d4 {[%clk 0:10:02.6]}
2... cxd4 {[%clk 0:10:00.2]} 3. Nf3 {[%clk 0:10:04.1]} 3... d6 {[%clk
0:09:57.8]} 4. Bc4 {[%clk 0:10:05.5]} 4... Nc6 {[%clk 0:09:54.3]} 5. h3 {[%clk
0:10:04.5]} 5... Nf6 {[%clk 0:09:52]} 6. Qe2 {[%clk 0:10:05.3]} 6... e6 {[%clk
0:09:46.8]} 7. O-O {[%clk 0:10:06.1]} 7... Be7 {[%clk 0:09:46.8]} 8. Rd1 {[%clk
0:10:07.6]} 8... O-O {[%clk 0:09:20.9]} 9. c3 {[%clk 0:10:08.3]} 9... d5 {[%clk
0:09:17.7]} 10. exd5 {[%clk 0:10:08.2]} 10... exd5 {[%clk 0:09:16.5]} 11. Bb3
{[%clk 0:10:09.7]} 11... Re8 {[%clk 0:09:05.1]} 12. cxd4 {[%clk 0:09:52.7]}
12... Bf5 {[%clk 0:09:00.2]} 13. Nc3 {[%clk 0:09:46.8]} 13... Bd6 {[%clk
0:08:52.7]} 14. Qb5 {[%clk 0:09:37.9]} 14... a6 {[%clk 0:08:49.3]} 15. Qf1
{[%clk 0:09:23.4]} 15... h6 {[%clk 0:07:38.4]} 16. Nxd5 {[%clk 0:09:09.6]} 16...
Nxd5 {[%clk 0:07:35.5]} 17. Bxd5 {[%clk 0:09:11.5]} 17... Nb4 {[%clk 0:07:35.3]}
18. Bb3 {[%clk 0:09:06.1]} 18... Nc2 {[%clk 0:07:02.1]} 19. Bxc2 {[%clk
0:08:59.6]} 19... Bxc2 {[%clk 0:07:02.4]} 20. Re1 {[%clk 0:09:00.7]} 20... Be4
{[%clk 0:07:02.4]} 21. Re3 {[%clk 0:07:52.8]} 21... Rc8 {[%clk 0:06:56.4]} 22.
Qd1 {[%clk 0:07:30.6]} 22... Qb6 {[%clk 0:06:40.5]} 23. Rb3 {[%clk 0:06:56.2]}
23... Qc6 {[%clk 0:06:22.3]} 24. Be3 {[%clk 0:06:41.1]} 24... Bc2 {[%clk
0:06:15.5]} 25. Qe1 {[%clk 0:06:13.2]} 25... Bxb3 {[%clk 0:06:12]} 26. axb3
{[%clk 0:06:15.1]} 26... Bf4 {[%clk 0:06:01.1]} 27. Rd1 {[%clk 0:05:59.4]} 27...
Qc2 {[%clk 0:05:53.5]} 28. d5 {[%clk 0:05:19.8]} 28... Bxe3 {[%clk 0:05:51.3]}
29. fxe3 {[%clk 0:05:19.5]} 29... Rxe3 {[%clk 0:05:52.8]} 30. Qf1 {[%clk
0:05:20.5]} 30... Re2 {[%clk 0:05:02.7]} 31. Rd4 {[%clk 0:04:50.3]} 31... Qxb2
{[%clk 0:04:45.7]} 32. d6 {[%clk 0:04:29.5]} 32... Rc1 {[%clk 0:03:46]} 33. Rd1
{[%clk 0:03:53]} 33... Rxg2+ {[%clk 0:03:45.4]} 34. Kh1 {[%clk 0:03:36.6]} 34...
Rxd1 {[%clk 0:03:33.7]} 35. Qxd1 {[%clk 0:03:38.5]} 35... Rg6 {[%clk 0:03:25.5]}
36. Nh4 {[%clk 0:03:32.7]} 36... Rg3 {[%clk 0:03:02.7]} 37. Qf1 {[%clk
0:03:32.3]} 37... Qd2 {[%clk 0:02:32.7]} 38. Nf5 {[%clk 0:03:12.4]} 38... Rd3
{[%clk 0:02:24.4]} 0-1

[Event "GrandPrix_29.05"]
[Site "Chess.com"]
[Date "2020.05.29"]
[Round "8"]
[White "VMikhalevski"]
[Black "MilanovicDan"]
[Result "1-0"]
[WhiteElo "2639"]
[BlackElo "2446"]
[TimeControl "600+2"]
[EndTime "12:58:59 PDT"]
[Termination "VMikhalevski won by resignation"]

1. Nf3 {[%clk 0:10:01.9]} 1... Nf6 {[%clk 0:09:52.3]} 2. g3 {[%clk 0:10:02.2]}
2... b5 {[%clk 0:09:48.1]} 3. Bg2 {[%clk 0:09:56]} 3... Bb7 {[%clk 0:09:47.7]}
4. Na3 {[%clk 0:09:55.6]} 4... a6 {[%clk 0:09:46.7]} 5. c4 {[%clk 0:09:56.3]}
5... c6 {[%clk 0:09:47]} 6. d4 {[%clk 0:09:45.8]} 6... d5 {[%clk 0:09:44.8]} 7.
b3 {[%clk 0:09:39.5]} 7... e6 {[%clk 0:09:36.3]} 8. O-O {[%clk 0:09:39.1]} 8...
Nbd7 {[%clk 0:09:37.3]} 9. Bb2 {[%clk 0:09:30.6]} 9... Bd6 {[%clk 0:09:24.1]}
10. Ne5 {[%clk 0:09:11.9]} 10... O-O {[%clk 0:09:10.7]} 11. Nc2 {[%clk 0:08:52]}
11... Qc7 {[%clk 0:08:46.2]} 12. Nxd7 {[%clk 0:08:44.7]} 12... Nxd7 {[%clk
0:08:21.5]} 13. Rc1 {[%clk 0:08:44.4]} 13... Rac8 {[%clk 0:07:46.1]} 14. Ne1
{[%clk 0:08:32.7]} 14... Qb8 {[%clk 0:07:24]} 15. c5 {[%clk 0:08:16.2]} 15...
Bc7 {[%clk 0:07:20.5]} 16. Nd3 {[%clk 0:08:17.1]} 16... Rce8 {[%clk 0:06:32]}
17. e4 {[%clk 0:08:07.5]} 17... dxe4 {[%clk 0:05:58.5]} 18. Bxe4 {[%clk
0:08:06.1]} 18... Nf6 {[%clk 0:05:59.4]} 19. Bg2 {[%clk 0:08:07]} 19... Rd8
{[%clk 0:05:59.6]} 20. Qe2 {[%clk 0:07:56.9]} 20... a5 {[%clk 0:05:41]} 21. a3
{[%clk 0:07:22.3]} 21... b4 {[%clk 0:04:53]} 22. axb4 {[%clk 0:07:19.7]} 22...
Ba6 {[%clk 0:04:51.2]} 23. Bxc6 {[%clk 0:07:05.9]} 23... e5 {[%clk 0:04:42.5]}
24. b5 {[%clk 0:05:59.9]} 24... Bxb5 {[%clk 0:04:42.6]} 25. Bxb5 {[%clk
0:06:01]} 25... Qxb5 {[%clk 0:04:43.6]} 26. dxe5 {[%clk 0:06:01.9]} 26... Rfe8
{[%clk 0:04:34.6]} 27. Qc2 {[%clk 0:05:06]} 27... Rxd3 {[%clk 0:04:20.5]} 28.
exf6 {[%clk 0:05:05.5]} 28... Rxb3 {[%clk 0:04:21.6]} 29. Rfe1 {[%clk
0:04:38.8]} 29... Rb8 {[%clk 0:03:29.1]} 30. Qf5 {[%clk 0:03:58]} 30... Qd3
{[%clk 0:02:54.2]} 31. Qxd3 {[%clk 0:03:56.4]} 31... Rxd3 {[%clk 0:02:54.5]} 32.
Re7 {[%clk 0:03:58]} 32... gxf6 {[%clk 0:01:47.8]} 33. Bxf6 {[%clk 0:03:53.5]}
33... Rc8 {[%clk 0:01:43.4]} 34. Rb1 {[%clk 0:03:18]} 34... Rf3 {[%clk
0:01:40.1]} 35. Rxc7 {[%clk 0:03:16]} 1-0

[Event "GrandPrix_29.05"]
[Site "Chess.com"]
[Date "2020.05.29"]
[Round "8"]
[White "Yurovskykh_Alexander"]
[Black "jncool68"]
[Result "0-1"]
[WhiteElo "2147"]
[BlackElo "2341"]
[TimeControl "600+2"]
[EndTime "12:59:00 PDT"]
[Termination "jncool68 won by resignation"]

1. d4 {[%clk 0:09:54.3]} 1... Nf6 {[%clk 0:10:00.3]} 2. Nf3 {[%clk 0:09:54]}
2... e6 {[%clk 0:10:01.2]} 3. Bf4 {[%clk 0:09:49]} 3... d5 {[%clk 0:10:01.9]} 4.
e3 {[%clk 0:09:47.8]} 4... Bd6 {[%clk 0:10:02.2]} 5. Bg3 {[%clk 0:09:46.1]} 5...
O-O {[%clk 0:10:02.9]} 6. Nbd2 {[%clk 0:09:37.6]} 6... c5 {[%clk 0:10:03.5]} 7.
c3 {[%clk 0:09:37.1]} 7... Qc7 {[%clk 0:10:03.5]} 8. dxc5 {[%clk 0:09:37.8]}
8... Qxc5 {[%clk 0:10:03.2]} 9. Bd3 {[%clk 0:09:38.1]} 9... Nbd7 {[%clk
0:10:01.3]} 10. Qe2 {[%clk 0:09:37.5]} 10... Qb6 {[%clk 0:09:46.1]} 11. O-O-O
{[%clk 0:08:55.7]} 11... Nc5 {[%clk 0:09:41.9]} 12. e4 {[%clk 0:08:16.8]} 12...
Be7 {[%clk 0:09:34.9]} 13. Bc2 {[%clk 0:07:56.5]} 13... Bd7 {[%clk 0:09:10.3]}
14. e5 {[%clk 0:07:44.8]} 14... Bb5 {[%clk 0:08:06.9]} 15. Qe3 {[%clk
0:07:27.3]} 15... Nfd7 {[%clk 0:08:06.6]} 16. Bh4 {[%clk 0:06:58.4]} 16... Bxh4
{[%clk 0:07:49.8]} 17. Nxh4 {[%clk 0:07:00.3]} 17... Nd3+ {[%clk 0:07:34.7]} 18.
Bxd3 {[%clk 0:06:52]} 18... Qxe3 {[%clk 0:07:35.3]} 19. fxe3 {[%clk 0:06:53.6]}
19... Bxd3 {[%clk 0:07:36.6]} 20. Nhf3 {[%clk 0:06:54.6]} 20... Rac8 {[%clk
0:07:32.9]} 21. Rhe1 {[%clk 0:06:27]} 21... Nc5 {[%clk 0:07:33.3]} 22. Nb3
{[%clk 0:06:18.7]} 22... Nxb3+ {[%clk 0:07:33.3]} 23. axb3 {[%clk 0:06:20.6]}
23... Be4 {[%clk 0:07:32.9]} 24. Kd2 {[%clk 0:06:11.5]} 24... f6 {[%clk
0:07:28.4]} 25. exf6 {[%clk 0:06:07.9]} 25... Rxf6 {[%clk 0:07:30.3]} 26. Rf1
{[%clk 0:05:58.4]} 26... Rcf8 {[%clk 0:07:29.2]} 27. Ke2 {[%clk 0:05:53.4]}
27... Bc2 {[%clk 0:07:29.5]} 28. Ra1 {[%clk 0:05:41.5]} 28... Bxb3 {[%clk
0:07:30]} 29. Kd2 {[%clk 0:04:48.4]} 29... a6 {[%clk 0:07:25.8]} 30. Rfe1 {[%clk
0:04:36.2]} 30... Bc4 {[%clk 0:07:25.2]} 31. e4 {[%clk 0:04:25.3]} 31... dxe4
{[%clk 0:07:21.1]} 32. Rxe4 {[%clk 0:04:27.2]} 32... Bd5 {[%clk 0:07:22.2]} 33.
Re5 {[%clk 0:04:26.6]} 33... Bxf3 {[%clk 0:06:57]} 34. gxf3 {[%clk 0:04:28.5]}
34... Rxf3 {[%clk 0:06:56.5]} 35. Rxe6 {[%clk 0:04:26.2]} 35... Rd8+ {[%clk
0:06:44.8]} 36. Ke2 {[%clk 0:03:21.4]} 36... Rh3 {[%clk 0:06:23.1]} 37. Rh1
{[%clk 0:03:21.8]} 37... Rd5 {[%clk 0:06:22.4]} 38. Re7 {[%clk 0:03:17.6]} 38...
Rb5 {[%clk 0:06:18.4]} 39. Rg1 {[%clk 0:02:58.1]} 39... Rxb2+ {[%clk 0:06:16.7]}
40. Kf1 {[%clk 0:02:37.1]} 40... Rb1+ {[%clk 0:06:11.6]} 41. Kg2 {[%clk
0:02:37.7]} 41... Rxg1+ {[%clk 0:06:10]} 42. Kxg1 {[%clk 0:02:29.4]} 42... Rxc3
{[%clk 0:06:10]} 43. Rxb7 {[%clk 0:02:30.3]} 43... Ra3 {[%clk 0:06:10.3]} 44.
Ra7 {[%clk 0:02:31.4]} 44... Ra2 {[%clk 0:06:09.5]} 45. h4 {[%clk 0:02:30]}
45... h5 {[%clk 0:06:08.8]} 46. Kf1 {[%clk 0:02:28.5]} 46... Ra4 {[%clk
0:06:07.4]} 47. Kg2 {[%clk 0:02:24.7]} 47... Rxh4 {[%clk 0:06:07.4]} 48. Rxa6
{[%clk 0:02:25.8]} 48... Rg4+ {[%clk 0:06:08.1]} 49. Kf3 {[%clk 0:02:24.8]}
49... Kh7 {[%clk 0:06:08.1]} 50. Rb6 {[%clk 0:02:26.2]} 50... g6 {[%clk
0:06:08.9]} 51. Ra6 {[%clk 0:02:25.8]} 51... Kh6 {[%clk 0:06:09.5]} 52. Ra5
{[%clk 0:02:26.8]} 52... Rb4 {[%clk 0:06:08.1]} 53. Kg3 {[%clk 0:02:26.9]} 53...
h4+ {[%clk 0:06:08.3]} 54. Kh3 {[%clk 0:02:28.2]} 54... g5 {[%clk 0:06:08]} 55.
Ra8 {[%clk 0:02:29.4]} 55... Rb3+ {[%clk 0:06:02.9]} 56. Kh2 {[%clk 0:02:30.6]}
56... Kh5 {[%clk 0:06:02.9]} 57. Ra4 {[%clk 0:02:30.4]} 57... Rb2+ {[%clk
0:06:01.5]} 58. Kg1 {[%clk 0:02:26.2]} 58... h3 {[%clk 0:06:01.9]} 59. Ra8
{[%clk 0:02:20.4]} 59... Kh4 {[%clk 0:05:59]} 60. Kh1 {[%clk 0:02:15.2]} 60...
g4 {[%clk 0:05:59.2]} 61. Kg1 {[%clk 0:02:12]} 61... Rb1+ {[%clk 0:05:52.7]} 62.
Kf2 {[%clk 0:02:12.2]} 62... g3+ {[%clk 0:05:45.5]} 63. Kf3 {[%clk 0:02:05.5]}
63... h2 {[%clk 0:05:37.8]} 64. Kf4 {[%clk 0:01:32.8]} 64... Rf1+ {[%clk
0:05:35.1]} 0-1

[Event "GrandPrix_29.05"]
[Site "Chess.com"]
[Date "2020.05.29"]
[Round "8"]
[White "DaggiGretarsson"]
[Black "weplaychess09"]
[Result "1-0"]
[WhiteElo "2049"]
[BlackElo "2053"]
[TimeControl "600+2"]
[EndTime "12:59:07 PDT"]
[Termination "DaggiGretarsson won by checkmate"]

1. d4 {[%clk 0:10:00.5]} 1... Nf6 {[%clk 0:10:00.5]} 2. c4 {[%clk 0:10:01.4]}
2... e6 {[%clk 0:10:01.1]} 3. Nc3 {[%clk 0:09:59.9]} 3... d5 {[%clk 0:10:02]} 4.
Bf4 {[%clk 0:10:00]} 4... Be7 {[%clk 0:10:01.6]} 5. e3 {[%clk 0:10:00.8]} 5...
O-O {[%clk 0:10:02.2]} 6. Qc2 {[%clk 0:09:56.7]} 6... b6 {[%clk 0:09:59.8]} 7.
Nf3 {[%clk 0:09:33.3]} 7... Bb7 {[%clk 0:09:31.7]} 8. cxd5 {[%clk 0:09:20]} 8...
Nxd5 {[%clk 0:09:31]} 9. Nxd5 {[%clk 0:09:20.2]} 9... Qxd5 {[%clk 0:09:31.6]}
10. Bd3 {[%clk 0:09:16.7]} 10... h6 {[%clk 0:09:29.7]} 11. a3 {[%clk 0:08:47.5]}
11... Nd7 {[%clk 0:09:15.3]} 12. e4 {[%clk 0:08:38.2]} 12... Qc6 {[%clk
0:08:58.7]} 13. Qxc6 {[%clk 0:08:31.9]} 13... Bxc6 {[%clk 0:08:59.8]} 14. Rc1
{[%clk 0:08:24.5]} 14... Ba4 {[%clk 0:09:00.3]} 15. Bxc7 {[%clk 0:08:07.7]}
15... Rfc8 {[%clk 0:08:40.3]} 16. Ba6 {[%clk 0:07:54.8]} 16... Bd6 {[%clk
0:08:24.5]} 17. Bb7 {[%clk 0:05:30.2]} 17... Rab8 {[%clk 0:08:06.8]} 18. Bxc8
{[%clk 0:05:30.8]} 18... Rxc8 {[%clk 0:08:08.2]} 19. Ke2 {[%clk 0:05:13.9]}
19... Bb5+ {[%clk 0:07:49.5]} 20. Ke3 {[%clk 0:05:13.7]} 20... Bxc7 {[%clk
0:07:29.8]} 21. Rc3 {[%clk 0:05:09.4]} 21... Nf6 {[%clk 0:07:28.1]} 22. h3
{[%clk 0:05:04.5]} 22... g5 {[%clk 0:07:22.8]} 23. g3 {[%clk 0:03:49.7]} 23...
Kf8 {[%clk 0:07:11.9]} 24. Rhc1 {[%clk 0:03:44.7]} 24... Ne8 {[%clk 0:07:11.6]}
25. d5 {[%clk 0:03:33.2]} 25... exd5 {[%clk 0:07:08.5]} 26. exd5 {[%clk
0:03:33.8]} 26... Ke7 {[%clk 0:07:09.6]} 27. Nd4 {[%clk 0:03:27.6]} 27... Bd7
{[%clk 0:07:06.7]} 28. Nc6+ {[%clk 0:03:18.8]} 28... Bxc6 {[%clk 0:07:06.3]} 29.
Rxc6 {[%clk 0:03:18.3]} 29... Kd7 {[%clk 0:07:06.2]} 30. Kf3 {[%clk 0:03:07.6]}
30... Nd6 {[%clk 0:07:05.4]} 31. Kg4 {[%clk 0:03:06.3]} 31... b5 {[%clk
0:06:16.5]} 32. Kh5 {[%clk 0:03:03.8]} 32... Nc4 {[%clk 0:06:16.3]} 33. a4
{[%clk 0:02:54]} 33... Nxb2 {[%clk 0:05:59]} 34. d6 {[%clk 0:02:51.6]} 34...
bxa4 {[%clk 0:05:25.5]} 35. Rxc7+ {[%clk 0:02:00.6]} 35... Rxc7 {[%clk
0:05:24.8]} 36. dxc7 {[%clk 0:02:01.7]} 36... Kc8 {[%clk 0:05:25.6]} 37. Kxh6
{[%clk 0:01:54.3]} 37... a3 {[%clk 0:05:25.6]} 38. Kxg5 {[%clk 0:01:32.7]} 38...
Nd3 {[%clk 0:05:13.4]} 39. Ra1 {[%clk 0:01:15.9]} 39... Nxf2 {[%clk 0:05:10.5]}
40. h4 {[%clk 0:00:47.7]} 40... Kxc7 {[%clk 0:05:09.3]} 41. h5 {[%clk
0:00:46.2]} 41... Ne4+ {[%clk 0:05:08.8]} 42. Kf4 {[%clk 0:00:45]} 42... Nf6
{[%clk 0:05:10.3]} 43. h6 {[%clk 0:00:45.6]} 43... Kd6 {[%clk 0:05:11.2]} 44.
Kf5 {[%clk 0:00:40.5]} 44... Ke7 {[%clk 0:05:11.5]} 45. Re1+ {[%clk 0:00:40.2]}
45... Kf8 {[%clk 0:05:12.4]} 46. Kxf6 {[%clk 0:00:40.5]} 46... a2 {[%clk
0:05:06]} 47. h7 {[%clk 0:00:36.9]} 47... a1=Q+ {[%clk 0:05:07.1]} 48. Rxa1
{[%clk 0:00:37.2]} 48... a6 {[%clk 0:05:07.4]} 49. h8=R# {[%clk 0:00:34.3]} 1-0